fUSD/lending_fUSD_20240330
["ID","MTS","AMOUNT","RATE_DAILY","PERIOD"]
[321017453,1711774239366,-400.0,0.000488,17]
[321017454,1711774239375,-314.066022,0.00048818,86]
[321017455,1711774239386,-150.0,0.00048821,7]
[321017456,1711774239396,-157.033011,0.00048858,88]
[321017457,1711774239405,-6381.24,0.00048872,9]
[321017458,1711774239415,-6381.24,0.00048872,9]
[321017459,1711774239424,-598.05981994,0.00048873,2]
[321017460,1711774239434,-62378.9265476,0.00048873,2]
[321017461,1711774239444,-6332.8137362,0.00048873,2]
[321017462,1711774239454,-5747.8782847,0.00048873,2]
[321017463,1711774239463,-418.76739178,0.00048876,2]
[321017464,1711774239473,-155.90864369,0.00048877,4]
[321017465,1711774239483,-14239.07570555,0.00048878,7]
[321017466,1711774239493,-314.066022,0.00048878,89]
[321017467,1711774239504,-174.46763,0.00048878,44]
[321017468,1711774239513,-156.24011391,0.00048879,4]
[321017469,1711774239524,-205.89992937,0.00048879,2]
[321017470,1711774239534,-5018.08151861,0.00048879,2]
[321017471,1711774239543,-296.8695862,0.00048879,4]
[321017472,1711774239553,-512.45511828,0.00048879,9]
[321017473,1711774239565,-500.0,0.00048879,9]
[321017474,1711774239575,-500.0,0.00048879,9]
[321017475,1711774239585,-500.0,0.00048879,9]
[321017476,1711774239597,-500.0,0.00048879,9]
[321017477,1711774239608,-500.0,0.00048879,9]
[321017478,1711774239617,-411.22993993,0.00048879,9]
[321017479,1711774239627,-6381.24,0.00048879,9]
[321017480,1711774239636,-6381.24,0.00048879,9]
[321017481,1711774239646,-6381.24,0.00048879,9]
[321017482,1711774239656,-6381.24,0.00048879,9]
[321017483,1711774239666,-158.0,0.0004888,7]
[321017484,1711774239675,-342695.88901846,0.0004888,2]
[321017485,1711774240536,-499.99,0.00046641,2]
[321017486,1711774240546,-2996.43358695,0.0004888,2]
[321017487,1711774240591,-989.98,0.0004888,2]
[321017510,1711774243575,-28730.15714131,0.0004888,2]
[321017537,1711774287212,4384.77639282,0.00042221,30]
[321017539,1711774417383,-1209.07760925,0.0002509,2]
[321017540,1711774435738,8790.92239075,0.00025,4]
[321017541,1711774435764,6167.82278148,0.00025,4]
[321017546,1711774473206,206.65417525,0.00042221,120]
[321017547,1711774473683,2466.156029,0.0002415,2]
[321017550,1711774522362,-1677.07150154,0.000275,2]
[321017557,1711774577870,-22095.34013509,0.0003,2]
[321017561,1711774854143,20000.0,0.00042221,90]
[321017562,1711775154725,-155.0,0.00034899,4]
[321017563,1711775154762,-163.90240332,0.000349,2]
[321017564,1711775154792,-3882.36503511,0.00034999,4]
[321017565,1711775154812,-1935.72230986,0.00035,30]
[321017572,1711775432394,-534.97716322,0.00039988,4]
[321017573,1711775432421,-12.437191,0.00039988,4]
[321017574,1711775432434,-3882.36503511,0.00039989,4]
[321017575,1711775432444,-5729.93998202,0.0003999,2]
[321017576,1711775433099,-498.56859254,0.0003999,2]
[321017577,1711775433118,-10808.9602961,0.0003999,2]
[321017578,1711775433138,-2657.2692505,0.0003999,2]
[321017580,1711775433147,-1156.292508,0.0004,90]
[321017614,1711775438394,-881.707492,0.0004,90]
[321017616,1711775438404,-281.43,0.00040646,2]
[321017618,1711775438413,-200.0,0.00041329,2]
[321017619,1711775438424,-500.0,0.00041333,2]
[321017620,1711775438433,-250.0,0.00041446,2]
[321017621,1711775438442,-157.09,0.00041707,2]
[321017622,1711775438451,-151.49,0.00041854,2]
[321017623,1711775438461,-250.0,0.00042048,2]
[321017624,1711775438470,-443.511,0.00042121,2]
[321017625,1711775438480,-880.91408709,0.00042121,2]
[321017626,1711775438489,-7623.48370358,0.00042121,2]
[321017627,1711775438498,-935.3757,0.00042124,2]
[321017628,1711775438507,-1008.15020306,0.00042194,4]
[321017629,1711775438518,-10269.21,0.00042195,2]
[321017630,1711775438527,-150.99,0.00042195,2]
[321017631,1711775438537,-204.84,0.00042195,2]
[321017632,1711775438546,-499.99,0.00042195,2]
[321017633,1711775438557,-19000.0,0.000422,30]
[321017634,1711775438568,-386.0,0.000422,2]
[321017635,1711775438578,-406.66,0.00042211,30]
[321017636,1711775438589,-325.94793928,0.00042218,4]
[321017637,1711775438600,-155.39917727,0.00042218,4]
[321017638,1711775438610,-246.32780314,0.00042219,4]
[321017639,1711775438619,-434.8866891,0.00042219,4]
[321017640,1711775438629,-212.29241601,0.0004222,31]
[321017641,1711775438638,-22985.30215872,0.00042221,2]
[321017642,1711775438647,-65857.87675913,0.00042221,2]
[321017643,1711775438658,-155.8667992,0.00042221,2]
[321017644,1711775438668,-79510.28644317,0.00042221,7]
[321017645,1711775438677,-3760.20003355,0.00042221,2]
[321017646,1711775438687,-22258.21101915,0.00042221,2]
[321017647,1711775438697,-5442.76,0.00042221,10]
[321017648,1711775438706,-1246.49,0.00042221,2]
[321017649,1711775438716,-929.66342295,0.00042222,4]
[321017650,1711775438726,-379.91,0.00042315,2]
[321017651,1711775438736,-1238.3,0.00042601,2]
[321017652,1711775438746,-236.23,0.00042703,2]
[321017653,1711775438758,-166.43,0.00042805,15]
[321017654,1711775438769,-281.43,0.0004291,2]
[321017655,1711775438781,-151.49,0.00042944,2]
[321017656,1711775438791,-152.0,0.00043143,3]
[321017657,1711775438802,-880.91408708,0.00043244,2]
[321017658,1711775438812,-7623.48370349,0.00043244,2]
[321017659,1711775438823,-1693.07124967,0.00044,2]
[321017660,1711775438833,-151.49,0.00044034,2]
[321017661,1711775438842,-880.91408708,0.00044367,2]
[321017662,1711775438852,-7623.48370349,0.00044367,2]
[321017663,1711775438864,-161.78637706,0.00044897,30]
[321017664,1711775438873,-152.0,0.00045082,4]
[321017665,1711775438883,-281.43,0.00045174,2]
[321017666,1711775438893,-1000.0,0.00045246,2]
[321017667,1711775438903,-1238.3,0.00045341,2]
[321017668,1711775438912,-213.0,0.00045342,2]
[321017669,1711775438921,-880.91408708,0.0004549,2]
[321017670,1711775438931,-7623.48370349,0.0004549,2]
[321017671,1711775438940,-155.80878011,0.00045837,30]
[321017672,1711775438953,-283.697349,0.000465,8]
[321017673,1711775438962,-160.61272797,0.00046611,30]
[321017674,1711775438971,-880.91408708,0.00046613,2]
[321017675,1711775438980,-7623.48370349,0.00046613,2]
[321017676,1711775438990,-154.52145635,0.00046633,30]
[321017677,1711775439000,-157.62344408,0.00046668,30]
[321017678,1711775439009,-1183.33,0.00046669,120]
[321017679,1711775439018,-150.0,0.00047,9]
[321017680,1711775439029,-152.0,0.00047021,5]
[321017681,1711775439039,-281.43,0.00047438,2]
[321017682,1711775439049,-150.0,0.000475,9]
[321017683,1711775439058,-5127.28304637,0.000476,2]
[321017684,1711775439067,-880.91408708,0.00047736,2]
[321017685,1711775439076,-7623.48370349,0.00047736,2]
[321017686,1711775439085,-500.0,0.00047902,21]
[321017687,1711775439095,-4427.68,0.0004799,10]
[321017688,1711775439104,-162.0167426,0.00047991,30]
[321017689,1711775439113,-160192.99222143,0.00047998,2]
[321017690,1711775439122,-4000.0,0.00048,2]
[321017691,1711775439132,-205.44444444,0.00048,120]
[321017692,1711775439141,-150.0,0.00048,9]
[321017693,1711775439150,-1018.0,0.00048,28]
[321017694,1711775439159,-3013.0,0.00048,120]
[321017695,1711775439168,-1238.3,0.00048081,2]
[321017696,1711775439178,-160.61272797,0.00048328,30]
[321017697,1711775439186,-213.0,0.00048342,2]
[321017698,1711775439196,-250.7268988,0.00048389,4]
[321017699,1711775439206,-160.60239348,0.00048391,3]
[321017700,1711775439215,-400.0,0.000484,17]
[321017701,1711775439224,-617.0,0.00048466,30]
[321017702,1711775439234,-540.0,0.00048466,30]
[321017703,1711775439244,-608.0,0.00048466,30]
[321017704,1711775439254,-810.65541613,0.000485,120]
[321017705,1711775439264,-150.0,0.000485,9]
[321017706,1711775439274,-800.0,0.000485,17]
[321017707,1711775439283,-1067.59034668,0.00048564,2]
[321017708,1711775439293,-8235.2484,0.00048578,2]
[321017709,1711775439302,-176.3115268,0.0004858,13]
[321017710,1711775439311,-505.34413763,0.0004858,2]
[321017711,1711775439320,-1300.0,0.000486,17]
[321017712,1711775439330,-205.44444444,0.00048603,120]
[321017713,1711775439339,-347.61323564,0.00048621,21]
[321017714,1711775439349,-343.08201747,0.00048678,4]
[321017715,1711775439358,-156.24011391,0.00048678,4]
[321017716,1711775439367,-14239.07570555,0.00048678,7]
[321017717,1711775439377,-155.90864369,0.00048678,4]
[321017718,1711775439386,-418.76739178,0.00048678,2]
[321017719,1711775439395,-296.8695862,0.00048678,4]
[321017720,1711775439404,-195.56815547,0.00048678,4]
[321017721,1711775439414,-781.50282112,0.00048678,4]
[321017722,1711775439424,-359.52635619,0.00048678,4]
[321017723,1711775439434,-551.8076807,0.00048678,2]
[321017724,1711775439443,-524.41611715,0.00048678,4]
[321017725,1711775439454,-2629.71725754,0.00048678,4]
[321017726,1711775439464,-155.0,0.00048678,4]
[321017727,1711775439475,-1563.58455512,0.00048679,4]
[321017728,1711775439486,-245000.0,0.0004868,2]
[321017729,1711775439495,-330.5344,0.0004868,2]
[321017730,1711775439507,-310.8045,0.0004868,2]
[321017731,1711775439519,-150.0,0.00048694,7]
[321017732,1711775439529,-1024.0,0.000487,117]
[321017733,1711775439541,-1700.0,0.000487,17]
[321017734,1711775439554,-150.0,0.00048723,7]
[321017735,1711775439564,-170.55,0.00048748,7]
[321017736,1711775439573,-150.0,0.00048765,7]
[321017737,1711775439582,-512.45511828,0.00048767,9]
[321017738,1711775439592,-5666.36251051,0.00048767,9]
[321017739,1711775439606,-714.87748949,0.00048767,9]
[321017740,1711775439616,-100.55109988,0.00048767,9]
[321017741,1711775439645,-6280.68890012,0.00048767,9]
[321017742,1711775439656,-6381.24,0.00048767,9]
[321017743,1711775439666,-162.0167426,0.00048776,30]
[321017744,1711775439676,-201.46139882,0.0004878,25]
[321017745,1711775439685,-219.83622922,0.0004878,25]
[321017746,1711775439696,-5000.0,0.0004878,2]
[321017747,1711775439705,-216.69234166,0.0004878,2]
[321017748,1711775439715,-153.43144474,0.0004878,40]
[321017749,1711775439726,-1381.74127797,0.0004878,25]
[321017750,1711775439735,-159.73622367,0.0004878,2]
[321017751,1711775439745,-203.967176,0.0004878,2]
[321017752,1711775439754,-150.0,0.0004879,7]
[321017753,1711775439766,-150.0,0.000488,120]
[321017754,1711775439777,-268.68,0.000488,120]
[321017755,1711775439788,-40234.38836389,0.000488,9]
[321017756,1711775439798,-158.0,0.000488,2]
[321017757,1711775439809,-268.68,0.000488,120]
[321017758,1711775439820,-2100.0,0.000488,17]
[321017759,1711775439829,-1335.15205519,0.000488,30]
[321017760,1711775439838,-5300.0,0.000488,29]
[321017761,1711775439849,-270.0,0.000488,2]
[321017762,1711775439859,-150.0,0.00048824,7]
[321017763,1711775439870,-150.5,0.0004885,15]
[321017764,1711775439879,-266.83803306,0.00048856,7]
[321017765,1711775439888,-880.91408708,0.00048859,2]
[321017766,1711775439897,-7623.48370349,0.00048859,2]
[321017767,1711775439906,-150.5,0.0004886,15]
[321017768,1711775439915,-584.19595383,0.00048869,4]
[321017769,1711775439925,-150.5,0.0004887,15]
[321017770,1711775439937,-9039.47106703,0.00048878,4]
[321017771,1711775439946,-1343.64978144,0.00048878,2]
[321017772,1711775439954,-3047.14656989,0.00048878,2]
[321017773,1711775439963,-151.0,0.00048879,7]
[321017774,1711775439974,-1058.04238915,0.00048879,4]
[321017775,1711775439982,-230.65567927,0.00048879,4]
[321017776,1711775439991,-312.25064853,0.00048879,4]
[321017777,1711775440000,-409.55999983,0.00048879,4]
[321017778,1711775440009,-5018.08151861,0.00048879,2]
[321017779,1711775440020,-150.01,0.00048879,2]
[321017780,1711775440030,-6381.24,0.00048879,9]
[321017781,1711775440040,-6381.24,0.00048879,9]
[321017782,1711775440049,-6381.24,0.00048879,9]
[321017783,1711775440058,-6381.24,0.00048879,9]
[321017784,1711775440068,-6381.24,0.00048879,9]
[321017785,1711775440077,-6381.24,0.00048879,9]
[321017786,1711775440086,-6381.24,0.00048879,9]
[321017787,1711775440096,-6381.24,0.00048879,9]
[321017788,1711775440105,-6381.24,0.00048879,9]
[321017789,1711775440114,-6381.24,0.00048879,9]
[321017790,1711775440124,-6381.24,0.00048879,9]
[321017791,1711775440133,-6381.24,0.00048879,9]
[321017792,1711775440143,-6381.24,0.00048879,9]
[321017793,1711775440153,-6381.24,0.00048879,9]
[321017794,1711775440164,-6381.24,0.00048879,9]
[321017795,1711775440173,-6381.24,0.00048879,9]
[321017796,1711775440183,-6381.24,0.00048879,9]
[321017797,1711775440194,-6381.24,0.00048879,9]
[321017798,1711775440204,-6381.24,0.00048879,9]
[321017799,1711775440214,-6381.24,0.00048879,9]
[321017801,1711775440224,-6381.42425249,0.00048879,9]
[321017802,1711775440234,-115130.29029362,0.0004888,21]
[321017804,1711775440995,-651.1,0.0004799,10]
[321017805,1711775441017,-3038.63,0.0004799,10]
[321017806,1711775441027,-1712.74255398,0.0004888,21]
[321017807,1711775441038,-7731.05993831,0.0004888,21]
[321017808,1711775441050,-622.46737776,0.0004888,21]
[321017809,1711775441077,-455.34,0.0004888,21]
[321017810,1711775441088,-55554.2926421,0.0004888,21]
[321017811,1711775441100,-10574.76238233,0.0004888,21]
[321017847,1711775443560,-10586.9067777,0.0004888,21]
[321017848,1711775443609,-8226.75619537,0.0004888,21]
[321017947,1711775446362,-856.20926424,0.0004878,2]
[321017948,1711775446372,-50.16982841,0.0004887,30]
[321017949,1711775446746,-631.80017159,0.0004887,30]
[321017950,1711775446756,-150.01,0.00048879,2]
[321017951,1711775446766,-95.92681341,0.00048879,2]
[321017952,1711775446835,-4922.1547052,0.00048879,2]
[321017953,1711775446845,-2959.9594859,0.0004888,21]
[321017954,1711775456961,356.32506237,0.00035,4]
[321017955,1711775532984,250.0,0.00033,3]
[321017956,1711775534075,300.0,0.00035,3]
[321017957,1711775787578,-179.32336699,0.00041921,2]
[321017958,1711775799753,-4436.98861155,0.0004202,4]
[321017959,1711775799782,-1285.6992957,0.00042021,2]
[321017960,1711775799811,-639.37055535,0.00042021,2]
[321017961,1711775799844,-195.56815547,0.00042119,4]
[321017962,1711775799874,-343.08201747,0.00042119,4]
[321017963,1711775799904,-156.24011391,0.00042119,4]
[321017964,1711775799931,-155.90864369,0.00042119,4]
[321017965,1711775799960,-524.41611715,0.00042119,4]
[321017966,1711775799991,-296.8695862,0.00042119,4]
[321017967,1711775800022,-1563.58455512,0.00042119,4]
[321017968,1711775800053,-155.0,0.00042119,4]
[321017969,1711775800082,-359.52635619,0.00042119,4]
[321017970,1711775800111,-781.50282112,0.00042119,4]
[321017971,1711775800141,-2629.71725754,0.00042119,4]
[321017972,1711775800169,-551.8076807,0.00042119,2]
[321017973,1711775800203,-1000.0,0.0004212,2]
[321017974,1711775800232,-338.0035,0.00042121,30]
[321017975,1711775800262,-1935.7113,0.00042121,2]
[321017976,1711775800289,-3398.9435,0.00042121,2]
[321017977,1711775800316,-1718.663,0.00042121,2]
[321017978,1711775800346,-310.8045,0.00042121,2]
[321017979,1711775800372,-5986.9055,0.00042121,2]
[321017980,1711775800412,-40677.7271317,0.00042121,2]
[321017981,1711775800869,-204322.2728683,0.00042121,2]
[321017994,1711776631605,-308.0,0.000409,2]
[321017995,1711776631615,-151.64607204,0.00041821,2]
[321017996,1711776631624,-206.80556077,0.00041921,2]
[321017997,1711776631636,-459.75323735,0.00041921,2]
[321017998,1711776631730,-333.44120188,0.00041921,2]
[321017999,1711776631739,-2144.61216511,0.00041921,2]
[321018000,1711776631852,-2849.56533489,0.00041921,2]
[321018002,1711776631862,-1000.0,0.00041921,2]
[321018004,1711776631872,-678.7664,0.00041921,2]
[321018006,1711776631881,-7144.94333193,0.00041921,2]
[321018008,1711776631890,-8045.19849355,0.00042011,2]
[321018010,1711776631899,-305.7,0.00042011,2]
[321018012,1711776631909,-352.0384401,0.0004202,4]
[321018014,1711776631918,-14079.87445952,0.00042021,2]
[321018016,1711776631931,-1463.8799827,0.00042021,2]
[321018041,1711776637579,-511.49644428,0.00041921,2]
[321018042,1711776637590,-229456.24555778,0.00042021,2]
[321018043,1711776637599,-4869.6338,0.00042021,2]
[321018044,1711776637609,-2671.5824,0.00042121,2]
[321018045,1711776637619,-151.646072,0.00042394,2]
[321018046,1711776637632,-2314.73,0.00042789,2]
[321018047,1711776637641,-471.37,0.00042789,2]
[321018048,1711776637651,-151.646072,0.00042968,2]
[321018049,1711776637661,-511.49644428,0.00043024,2]
[321018050,1711776637673,-7144.94333191,0.00043036,2]
[321018051,1711776637684,-151.646072,0.00043541,2]
[321018052,1711776637697,-1333.89,0.00043882,2]
[321018053,1711776637707,-1441.22,0.00043901,120]
[321018054,1711776637719,-250.0,0.00043902,2]
[321018055,1711776637729,-200.0,0.0004395,2]
[321018056,1711776637739,-167.84,0.00043972,15]
[321018057,1711776637750,-500.0,0.00043974,2]
[321018058,1711776637762,-150.82,0.00044047,2]
[321018059,1711776637775,-250.0,0.000441,120]
[321018060,1711776637786,-151.646072,0.00044114,2]
[321018061,1711776637798,-7144.94333191,0.00044151,2]
[321018062,1711776637810,-500.0,0.00044202,2]
[321018063,1711776637820,-23900.0,0.00044233,2]
[321018064,1711776637831,-305.7,0.00044275,2]
[321018065,1711776637842,-150.0,0.00044281,2]
[321018066,1711776637852,-180.0,0.00044319,2]
[321018067,1711776637862,-494.81,0.00044377,2]
[321018068,1711776637873,-10609.43,0.0004442,2]
[321018069,1711776637883,-242.29,0.00044445,2]
[321018070,1711776637893,-157.22,0.00044499,2]
[321018071,1711776637904,-1000.0,0.00044555,2]
[321018072,1711776637916,-157.22,0.00044636,2]
[321018073,1711776637926,-151.646072,0.00044687,2]
[321018074,1711776637936,-316.59,0.00044712,120]
[321018075,1711776637946,-157.22,0.00044772,2]
[321018076,1711776637957,-154.18532078,0.00044897,30]
[321018078,1711776637967,-157.22,0.00044908,2]
[321018079,1711776637978,-157.22,0.00045045,2]
[321018080,1711776637989,-157.22,0.00045181,2]
[321018081,1711776637999,-151.646072,0.00045261,2]
[321018082,1711776638010,-7144.94333191,0.00045265,2]
[321018084,1711776638019,-157.22,0.00045318,2]
[321018086,1711776638029,-1092.6,0.00045324,2]
[321018088,1711776638038,-157.22,0.00045454,2]
[321018090,1711776638048,-157.22,0.0004559,2]
[321018092,1711776638059,-157.22,0.00045727,2]
[321018094,1711776638069,-156.76840893,0.00045752,30]
[321018095,1711776638078,-151.646072,0.00045834,2]
[321018096,1711776638088,-157.22,0.00045863,2]
[321018097,1711776638097,-157.22,0.00046,2]
[321018098,1711776638106,-1008.274,0.0004601,2]
[321018099,1711776638117,-157.22,0.00046136,2]
[321018100,1711776638128,-157.22,0.00046272,2]
[321018101,1711776638137,-27659.3054,0.00046333,2]
[321018102,1711776638146,-7144.94333191,0.0004638,2]
[321018104,1711776638156,-161.65310757,0.000464,30]
[321018106,1711776638165,-151.646072,0.00046407,2]
[321018108,1711776638175,-157.22,0.00046409,2]
[321018110,1711776638184,-1251.16,0.00046423,2]
[321018112,1711776638194,-4151.86608596,0.00046432,4]
[321018114,1711776638204,-123330.37495046,0.00046433,2]
[321018115,1711776638262,-20211.81785917,0.00046433,2]
[321018116,1711776638273,-511.55591866,0.00046434,4]
[321018117,1711776638283,-305.7,0.00046539,2]
[321018118,1711776638293,-157.22,0.00046545,2]
[321018119,1711776638304,-157.22,0.00046682,2]
[321018120,1711776638313,-157.22,0.00046818,2]
[321018121,1711776638323,-151.646072,0.0004698,2]
[321018122,1711776638333,-506.0,0.00047,27]
[321018123,1711776638343,-162.01674261,0.00047011,30]
[321018124,1711776638353,-154.52145635,0.00047292,30]
[321018125,1711776638362,-171.24,0.00047365,2]
[321018126,1711776638372,-155.34840069,0.00047491,30]
[321018127,1711776638381,-4522.33753567,0.00047495,2]
[321018128,1711776638394,-1603.92978023,0.00047495,2]
[321018129,1711776638405,-995.17793393,0.00047495,2]
[321018130,1711776638421,-23.49808208,0.00047495,2]
[321018131,1711776638431,-151.646072,0.00047554,2]
[321018132,1711776638440,-156.14,0.00047637,2]
[321018133,1711776638450,-156.14,0.00047661,2]
[321018134,1711776638460,-156.14,0.00047685,2]
[321018135,1711776638470,-156.14,0.00047709,2]
[321018136,1711776638480,-156.14,0.00047732,2]
[321018137,1711776638490,-156.14,0.00047756,2]
[321018138,1711776638499,-156.14,0.0004778,2]
[321018139,1711776638509,-445.41,0.00047794,2]
[321018140,1711776638519,-156.14,0.00047804,2]
[321018141,1711776638529,-156.14,0.00047828,2]
[321018142,1711776638538,-156.14,0.00047852,2]
[321018143,1711776638548,-156.14,0.00047875,2]
[321018144,1711776638560,-418.76739178,0.00048,2]
[321018145,1711776638569,-203.16666667,0.00048,120]
[321018146,1711776638578,-511.00231269,0.00048,2]
[321018147,1711776638591,-1510.99768731,0.00048,2]
[321018148,1711776638601,-39.00231269,0.00048,2]
[321018149,1711776638935,-473.99768731,0.00048,2]
[321018150,1711776638944,-275.78,0.00048074,2]
[321018151,1711776638953,-95.24231269,0.00048119,7]
[321018162,1711776639892,207.02675148,0.00042224,30]
[321018163,1711776640370,-213.0,0.0004601,2]
[321018164,1711776640682,-687.0,0.00048119,7]
[321018165,1711776640722,-675.04100218,0.00048119,7]
[321018166,1711776640740,-295.99112487,0.00048119,7]
[321018167,1711776640816,-12485.80126581,0.00048119,7]
[321018168,1711776640826,-151.646072,0.00048127,2]
[321018169,1711776640836,-156.76840894,0.00048128,30]
[321018170,1711776640845,-151.033014,0.00048238,70]
[321018171,1711776640855,-151.033014,0.00048258,71]
[321018172,1711776640865,-1415.06495578,0.00048261,2]
[321018173,1711776640874,-151.033014,0.00048278,72]
[321018174,1711776640884,-151.033014,0.00048298,73]
[321018175,1711776640894,-200.0,0.000483,17]
[321018176,1711776640903,-151.033014,0.00048318,74]
[321018177,1711776640913,-2562.31,0.00048328,10]
[321018178,1711776640922,-2135.26,0.00048328,10]
[321018179,1711776640932,-151.033014,0.00048338,75]
[321018180,1711776640942,-151.033014,0.00048358,76]
[321018181,1711776640952,-151.033014,0.00048378,77]
[321018182,1711776640963,-183.46764625,0.00048391,3]
[321018183,1711776640972,-685.43,0.00048391,30]
[321018184,1711776640982,-151.033014,0.00048398,78]
[321018185,1711776640991,-36117.7925622,0.000484,2]
[321018186,1711776641000,-500.0,0.000484,17]
[321018187,1711776641010,-151.033014,0.00048418,79]
[321018188,1711776641019,-151.033014,0.00048438,80]
[321018189,1711776641029,-151.033014,0.00048458,81]
[321018190,1711776641038,-151.033014,0.00048478,82]
[321018191,1711776641047,-800.0,0.00048489,25]
[321018192,1711776641058,-516.0,0.00048493,30]
[321018193,1711776641068,-540.0,0.00048493,30]
[321018194,1711776641077,-593.0,0.00048493,30]
[321018195,1711776641086,-151.033014,0.00048498,83]
[321018196,1711776641095,-800.0,0.000485,17]
[321018197,1711776641104,-3074.78,0.00048508,10]
[321018198,1711776641114,-151.033014,0.00048518,85]
[321018199,1711776641123,-151.033014,0.00048538,86]
[321018200,1711776641133,-151.033014,0.00048558,87]
[321018201,1711776641143,-151.033014,0.00048578,88]
[321018202,1711776641153,-1415.06495578,0.00048593,2]
[321018203,1711776641163,-151.033014,0.00048598,89]
[321018204,1711776641172,-1251.16,0.000486,2]
[321018205,1711776641181,-1000.0,0.000486,17]
[321018206,1711776641190,-203.16666667,0.00048603,120]
[321018207,1711776641200,-7144.94333191,0.0004861,2]
[321018208,1711776641210,-151.033014,0.00048618,90]
[321018209,1711776641220,-150.0,0.00048619,7]
[321018210,1711776641230,-500.0,0.00048636,2]
[321018211,1711776641239,-410.0528,0.00048636,2]
[321018212,1711776641249,-151.033014,0.00048638,91]
[321018213,1711776641258,-151.033014,0.00048658,92]
[321018214,1711776641267,-150.0,0.00048661,7]
[321018215,1711776641276,-170.55,0.00048667,7]
[321018216,1711776641286,-151.033014,0.00048678,93]
[321018217,1711776641296,-150.0,0.00048685,7]
[321018218,1711776641307,-151.033014,0.00048698,94]
[321018219,1711776641317,-151.646072,0.000487,2]
[321018220,1711776641327,-1300.0,0.000487,17]
[321018221,1711776641337,-1024.0,0.000487,117]
[321018222,1711776641347,-153.43144474,0.000487,39]
[321018223,1711776641357,-151.033014,0.00048718,95]
[321018224,1711776641367,-151.033014,0.00048738,96]
[321018225,1711776641377,-151.033014,0.00048758,97]
[321018226,1711776641387,-500.0,0.00048767,9]
[321018227,1711776641396,-500.0,0.00048767,9]
[321018228,1711776641406,-151.033014,0.00048778,98]
[321018229,1711776641415,-5000.0,0.00048779,2]
[321018230,1711776641425,-153.0,0.0004878,7]
[321018231,1711776641434,-330.5344,0.0004878,2]
[321018232,1711776641444,-677.4551,0.0004878,2]
[321018233,1711776641454,-216.69234166,0.0004878,2]
[321018234,1711776641463,-2782.46065101,0.0004878,2]
[321018235,1711776641585,-2358.45651391,0.0004878,2]
[321018236,1711776641594,-1251.16,0.0004879,2]
[321018237,1711776641604,-1251.16,0.0004879,2]
[321018238,1711776641615,-1251.16,0.0004879,2]
[321018239,1711776641627,-1157.12936605,0.00048792,2]
[321018240,1711776641637,-151.033014,0.00048798,99]
[321018241,1711776641647,-500.0,0.00048799,9]
[321018242,1711776641657,-500.0,0.00048799,9]
[321018243,1711776641666,-500.0,0.00048799,9]
[321018244,1711776641680,-500.0,0.00048799,9]
[321018245,1711776641690,-235470.4811839,0.000488,20]
[321018246,1711776641710,-465.72232873,0.000488,20]
[321018272,1711776642533,-511.49644428,0.00044128,2]
[321018274,1711776642543,-6547.26694951,0.000488,20]
[321018276,1711776642555,-3610.67290149,0.000488,20]
[321018281,1711776642593,-6056.94220038,0.000488,20]
[321018283,1711776642605,-3418.68312154,0.000488,20]
[321018288,1711776642763,-167802.76316251,0.000488,20]
[321018324,1711777336417,250.0,0.00033,3]
[321018325,1711777337508,300.0,0.00035,3]
[321018338,1711777831754,-682.135066,0.00040596,2]
[321018339,1711777831763,-48.19954922,0.000408,2]
[321018340,1711777831776,-456.89095078,0.000408,2]
[321018341,1711777831786,-1134.0,0.000409,2]
[321018342,1711777831795,-3007.7429,0.000409,2]
[321018343,1711777831804,-1019.06483183,0.00041,30]